fUSD/lending_fUSD_20260614
["ID","MTS","AMOUNT","RATE_DAILY","PERIOD"]
[425003472,1781406226000,-500.0,0.00027397,2]
[425003471,1781406226000,-993.93,0.00027397,2]
[425003470,1781406226000,-500.0,0.00027397,2]
[425003468,1781406226000,-500.0,0.00027397,2]
[425003467,1781406226000,-500.0,0.00027397,2]
[425003484,1781406226000,-500.0,0.00027397,2]
[425003473,1781406226000,-1320.35,0.00027397,2]
[425003482,1781406226000,-1110.62,0.00027397,2]
[425003501,1781406226000,-1092.24,0.00027397,2]
[425003486,1781406226000,-718.32,0.00027397,2]
[425003485,1781406226000,-500.0,0.00027397,2]
[425003502,1781406226000,-151.0,0.00027397,2]
[425003498,1781406226000,-151.0,0.00027397,2]
[425003500,1781406226000,-151.0,0.00027397,2]
[425003503,1781406226000,-500.0,0.00027397,2]
[425003494,1781406226000,-500.0,0.00027397,2]
[425003497,1781406226000,-151.0,0.00027397,2]
[425003496,1781406226000,-151.0,0.00027397,2]
[425003499,1781406226000,-500.0,0.00027397,2]
[425003490,1781406226000,-617.5,0.00027397,2]
[425003491,1781406226000,-500.0,0.00027397,2]
[425003493,1781406226000,-500.0,0.00027397,2]
[425003492,1781406226000,-303.69594827,0.00027397,2]
[425003489,1781406226000,-500.0,0.00027397,2]
[425003488,1781406226000,-508.54,0.00027397,2]
[425003487,1781406226000,-692.81,0.00027397,2]
[425003495,1781406226000,-588.11,0.00027397,2]
[425003515,1781406227000,-500.0,0.00027397,2]
[425003521,1781406227000,-500.0,0.00027397,2]
[425003520,1781406227000,-151.0,0.00027397,2]
[425003518,1781406227000,-619.13,0.00027397,2]
[425003517,1781406227000,-151.0,0.00027397,2]
[425003516,1781406227000,-1182.67,0.00027397,2]
[425003514,1781406227000,-151.0,0.00027397,2]
[425003513,1781406227000,-151.0,0.00027397,2]
[425003505,1781406227000,-500.0,0.00027397,2]
[425003510,1781406227000,-151.0,0.00027397,2]
[425003511,1781406227000,-151.0,0.00027397,2]
[425003509,1781406227000,-151.0,0.00027397,2]
[425003508,1781406227000,-151.0,0.00027397,2]
[425003506,1781406227000,-151.0,0.00027397,2]
[425003507,1781406227000,-500.0,0.00027397,2]
[425003519,1781406227000,-858.09,0.00027397,2]
[425003504,1781406227000,-151.0,0.00027397,2]
[425003512,1781406227000,-500.0,0.00027397,2]
[425003523,1781406227000,-610.19,0.00027397,2]
[425003522,1781406227000,-275.739509,0.00027397,2]
[425003524,1781406227000,-500.0,0.00027397,2]
[425003525,1781406227000,-500.0,0.00027397,2]
[425003542,1781406227000,-500.0,0.00027397,2]
[425003543,1781406227000,-3378.92,0.00027397,2]
[425003539,1781406227000,-582.9,0.00027397,2]
[425003537,1781406227000,-1209.94,0.00027397,2]
[425003541,1781406227000,-819.57,0.00027397,2]
[425003540,1781406227000,-767.67,0.00027397,2]
[425003536,1781406227000,-500.0,0.00027397,2]
[425003532,1781406227000,-2541.71,0.00027397,2]
[425003538,1781406227000,-525.41,0.00027397,2]
[425003534,1781406227000,-500.0,0.00027397,2]
[425003533,1781406227000,-1197.81,0.00027397,2]
[425003530,1781406227000,-500.0,0.00027397,2]
[425003528,1781406227000,-500.0,0.00027397,2]
[425003531,1781406227000,-500.0,0.00027397,2]
[425003529,1781406227000,-1347.11,0.00027397,2]
[425003527,1781406227000,-500.0,0.00027397,2]
[425003535,1781406227000,-755.73,0.00027397,2]
[425003526,1781406227000,-500.0,0.00027397,2]
[425003556,1781406228000,-1460.35,0.00027397,2]
[425003557,1781406228000,-500.0,0.00027397,2]
[425003558,1781406228000,-500.0,0.00027397,2]
[425003561,1781406228000,-563.72,0.00027397,2]
[425003560,1781406228000,-500.0,0.00027397,2]
[425003562,1781406228000,-500.0,0.00027397,2]
[425003555,1781406228000,-500.0,0.00027397,2]
[425003559,1781406228000,-505.8,0.00027397,2]
[425003553,1781406228000,-500.0,0.00027397,2]
[425003544,1781406228000,-2379.38,0.00027397,2]
[425003551,1781406228000,-1114.5,0.00027397,2]
[425003552,1781406228000,-500.0,0.00027397,2]
[425003547,1781406228000,-604.06,0.00027397,2]
[425003550,1781406228000,-1972.17,0.00027397,2]
[425003549,1781406228000,-628.33,0.00027397,2]
[425003548,1781406228000,-500.0,0.00027397,2]
[425003545,1781406228000,-500.0,0.00027397,2]
[425003546,1781406228000,-500.0,0.00027397,2]
[425003563,1781406228000,-2307.76,0.00027397,2]
[425003554,1781406228000,-1045.49,0.00027397,2]
[425003566,1781406228000,-500.0,0.00027397,2]
[425003579,1781406228000,-500.0,0.00027397,2]
[425003565,1781406228000,-500.0,0.00027397,2]
[425003583,1781406228000,-500.0,0.00027397,2]
[425003582,1781406228000,-500.0,0.00027397,2]
[425003585,1781406228000,-558.9,0.00027397,2]
[425003584,1781406228000,-500.0,0.00027397,2]
[425003580,1781406228000,-500.0,0.00027397,2]
[425003581,1781406228000,-500.0,0.00027397,2]
[425003586,1781406228000,-500.0,0.00027397,2]
[425003578,1781406228000,-581.16,0.00027397,2]
[425003576,1781406228000,-500.0,0.00027397,2]
[425003568,1781406228000,-500.0,0.00027397,2]
[425003573,1781406228000,-604.22,0.00027397,2]
[425003577,1781406228000,-962.46,0.00027397,2]
[425003574,1781406228000,-602.07,0.00027397,2]
[425003570,1781406228000,-500.0,0.00027397,2]
[425003571,1781406228000,-500.0,0.00027397,2]
[425003572,1781406228000,-500.0,0.00027397,2]
[425003569,1781406228000,-976.89,0.00027397,2]
[425003567,1781406228000,-1155.39,0.00027397,2]
[425003564,1781406228000,-516.25,0.00027397,2]
[425003575,1781406228000,-500.0,0.00027397,2]
[425003598,1781406229000,-500.0,0.00027397,2]
[425003599,1781406229000,-500.0,0.00027397,2]
[425003601,1781406229000,-500.0,0.00027397,2]
[425003605,1781406229000,-151.0,0.00027397,2]
[425003600,1781406229000,-500.0,0.00027397,2]
[425003603,1781406229000,-151.0,0.00027397,2]
[425003595,1781406229000,-690.74,0.00027397,2]
[425003602,1781406229000,-1477.39,0.00027397,2]
[425003597,1781406229000,-1824.8,0.00027397,2]
[425003590,1781406229000,-500.0,0.00027397,2]
[425003592,1781406229000,-500.0,0.00027397,2]
[425003593,1781406229000,-500.0,0.00027397,2]
[425003594,1781406229000,-500.0,0.00027397,2]
[425003591,1781406229000,-554.73,0.00027397,2]
[425003589,1781406229000,-857.12,0.00027397,2]
[425003588,1781406229000,-591.27,0.00027397,2]
[425003587,1781406229000,-500.0,0.00027397,2]
[425003604,1781406229000,-500.0,0.00027397,2]
[425003596,1781406229000,-1363.12,0.00027397,2]
[425003606,1781406229000,-253.02462,0.00027397,2]
[425003607,1781406229000,-500.0,0.00027397,2]
[425003624,1781406229000,-592.84,0.00027397,2]
[425003611,1781406229000,-651.94,0.00027397,2]
[425003628,1781406229000,-500.0,0.00027397,2]
[425003627,1781406229000,-500.0,0.00027397,2]
[425003626,1781406229000,-518.23,0.00027397,2]
[425003625,1781406229000,-500.0,0.00027397,2]
[425003623,1781406229000,-500.0,0.00027397,2]
[425003621,1781406229000,-500.0,0.00027397,2]
[425003622,1781406229000,-500.0,0.00027397,2]
[425003619,1781406229000,-634.1,0.00027397,2]
[425003618,1781406229000,-155.043134,0.00027397,2]
[425003617,1781406229000,-151.0,0.00027397,2]
[425003616,1781406229000,-500.0,0.00027397,2]
[425003615,1781406229000,-151.0,0.00027397,2]
[425003612,1781406229000,-500.0,0.00027397,2]
[425003614,1781406229000,-151.0,0.00027397,2]
[425003613,1781406229000,-519.5,0.00027397,2]
[425003608,1781406229000,-2110.16,0.00027397,2]
[425003610,1781406229000,-500.0,0.00027397,2]
[425003609,1781406229000,-500.0,0.00027397,2]
[425003620,1781406229000,-1403.75,0.00027397,2]
[425003629,1781406229000,-500.0,0.00027397,2]
[425003646,1781406230000,-409.33864947,0.00027397,2]
[425003643,1781406230000,-500.0,0.00027397,2]
[425003644,1781406230000,-500.0,0.00027397,2]
[425003651,1781406230000,-2257.24,0.00027397,2]
[425003647,1781406230000,-500.0,0.00027397,2]
[425003648,1781406230000,-500.0,0.00027397,2]
[425003649,1781406230000,-500.0,0.00027397,2]
[425003642,1781406230000,-702.66,0.00027397,2]
[425003645,1781406230000,-500.0,0.00027397,2]
[425003640,1781406230000,-706.67,0.00027397,2]
[425003630,1781406230000,-500.0,0.00027397,2]
[425003639,1781406230000,-562.02,0.00027397,2]
[425003636,1781406230000,-801.53,0.00027397,2]
[425003634,1781406230000,-807.58,0.00027397,2]
[425003638,1781406230000,-947.07,0.00027397,2]
[425003637,1781406230000,-500.0,0.00027397,2]
[425003635,1781406230000,-500.0,0.00027397,2]
[425003633,1781406230000,-2403.07,0.00027397,2]
[425003632,1781406230000,-500.0,0.00027397,2]
[425003631,1781406230000,-682.06,0.00027397,2]
[425003641,1781406230000,-500.0,0.00027397,2]
[425003650,1781406230000,-340.39140193,0.00027397,2]
[425003658,1781406230000,-377.59224556,0.00027397,2]
[425003653,1781406230000,-500.0,0.00027397,2]
[425003652,1781406230000,-500.0,0.00027397,2]
[425003674,1781406230000,-543.75859585,0.00027397,2]
[425003675,1781406230000,-500.0,0.00027397,2]
[425003673,1781406230000,-551.03,0.00027397,2]
[425003672,1781406230000,-513.41673902,0.00027397,2]
[425003670,1781406230000,-500.0,0.00027397,2]
[425003668,1781406230000,-500.0,0.00027397,2]
[425003669,1781406230000,-500.0,0.00027397,2]
[425003667,1781406230000,-500.0,0.00027397,2]
[425003665,1781406230000,-500.0,0.00027397,2]
[425003671,1781406230000,-640.8,0.00027397,2]
[425003664,1781406230000,-511.11,0.00027397,2]
[425003666,1781406230000,-500.0,0.00027397,2]
[425003655,1781406230000,-500.0,0.00027397,2]
[425003654,1781406230000,-1702.72,0.00027397,2]
[425003656,1781406230000,-850.74,0.00027397,2]
[425003657,1781406230000,-500.0,0.00027397,2]
[425003661,1781406230000,-500.0,0.00027397,2]
[425003659,1781406230000,-500.0,0.00027397,2]
[425003662,1781406230000,-500.0,0.00027397,2]
[425003663,1781406230000,-500.0,0.00027397,2]
[425003660,1781406230000,-500.0,0.00027397,2]
[425003684,1781406231000,-500.0,0.00027397,2]
[425003691,1781406231000,-500.0,0.00027397,2]
[425003687,1781406231000,-500.0,0.00027397,2]
[425003686,1781406231000,-500.0,0.00027397,2]
[425003685,1781406231000,-1794.9,0.00027397,2]
[425003680,1781406231000,-653.49,0.00027397,2]
[425003678,1781406231000,-500.0,0.00027397,2]
[425003682,1781406231000,-500.0,0.00027397,2]
[425003681,1781406231000,-500.0,0.00027397,2]
[425003679,1781406231000,-501.91706861,0.00027397,2]
[425003677,1781406231000,-500.0,0.00027397,2]
[425003676,1781406231000,-500.0,0.00027397,2]
[425003688,1781406231000,-1523.48,0.00027397,2]
[425003683,1781406231000,-500.0,0.00027397,2]
[425003689,1781406231000,-2301.17,0.00027397,2]
[425003694,1781406231000,-500.0,0.00027397,2]
[425003692,1781406231000,-500.0,0.00027397,2]
[425003690,1781406231000,-1911.55,0.00027397,2]
[425003705,1781406231000,-500.0,0.00027397,2]
[425003706,1781406231000,-500.0,0.00027397,2]
[425003702,1781406231000,-151.0,0.00027397,15]
[425003703,1781406231000,-500.0,0.00027397,2]
[425003701,1781406231000,-151.0,0.00027397,15]
[425003704,1781406231000,-1232.4,0.00027397,2]
[425003700,1781406231000,-151.0,0.00027397,15]
[425003697,1781406231000,-500.0,0.00027397,2]
[425003698,1781406231000,-500.0,0.00027397,2]
[425003696,1781406231000,-675.64,0.00027397,2]
[425003695,1781406231000,-606.78,0.00027397,2]
[425003693,1781406231000,-907.08,0.00027397,2]
[425003699,1781406231000,-151.0,0.00027397,15]
[425003715,1781406232000,-151.0,0.00027397,15]
[425003723,1781406232000,-500.0,0.00027397,2]
[425003721,1781406232000,-500.0,0.00027397,2]
[425003720,1781406232000,-151.0,0.00027397,15]
[425003719,1781406232000,-1286.2,0.00027397,2]
[425003716,1781406232000,-151.0,0.00027397,15]
[425003718,1781406232000,-151.0,0.00027397,15]
[425003717,1781406232000,-591.21,0.00027397,2]
[425003710,1781406232000,-151.0,0.00027397,15]
[425003713,1781406232000,-560.37526163,0.00027397,2]
[425003714,1781406232000,-500.0,0.00027397,2]
[425003711,1781406232000,-500.0,0.00027397,2]
[425003709,1781406232000,-546.9,0.00027397,2]
[425003707,1781406232000,-500.0,0.00027397,2]
[425003708,1781406232000,-151.0,0.00027397,15]
[425003725,1781406232000,-500.0,0.00027397,2]
[425003712,1781406232000,-151.0,0.00027397,15]
[425003722,1781406232000,-151.0,0.00027397,15]
[425003737,1781406232000,-361.45625197,0.00027397,2]
[425003727,1781406232000,-151.0,0.00027397,15]
[425003743,1781406232000,-152.706512,0.00027397,2]
[425003742,1781406232000,-151.0,0.00027397,2]
[425003740,1781406232000,-500.0,0.00027397,2]
[425003741,1781406232000,-635.09,0.00027397,2]
[425003739,1781406232000,-905.08,0.00027397,2]
[425003738,1781406232000,-790.86,0.00027397,2]
[425003744,1781406232000,-500.0,0.00027397,2]
[425003734,1781406232000,-151.0,0.00027397,15]
[425003724,1781406232000,-500.0,0.00027397,2]
[425003735,1781406232000,-523.99,0.00027397,2]
[425003732,1781406232000,-151.0,0.00027397,15]
[425003733,1781406232000,-151.0,0.00027397,15]
[425003730,1781406232000,-500.0,0.00027397,2]
[425003731,1781406232000,-151.0,0.00027397,15]
[425003726,1781406232000,-151.0,0.00027397,15]
[425003728,1781406232000,-151.0,0.00027397,15]
[425003729,1781406232000,-151.0,0.00027397,15]
[425003736,1781406232000,-273.641047,0.00027397,15]
[425003756,1781406233000,-500.0,0.00027397,2]
[425003757,1781406233000,-500.0,0.00027397,2]
[425003759,1781406233000,-850.58,0.00027397,2]
[425003761,1781406233000,-500.0,0.00027397,2]
[425003758,1781406233000,-500.0,0.00027397,2]
[425003754,1781406233000,-500.0,0.00027397,2]
[425003755,1781406233000,-500.0,0.00027397,2]
[425003751,1781406233000,-1822.48,0.00027397,2]
[425003748,1781406233000,-714.05,0.00027397,2]
[425003752,1781406233000,-1479.99,0.00027397,2]
[425003753,1781406233000,-500.0,0.00027397,2]
[425003747,1781406233000,-500.0,0.00027397,2]
[425003749,1781406233000,-677.86,0.00027397,2]
[425003746,1781406233000,-731.55,0.00027397,2]
[425003745,1781406233000,-1548.56,0.00027397,2]
[425003760,1781406233000,-500.0,0.00027397,2]
[425003750,1781406233000,-500.0,0.00027397,2]
[425003763,1781406233000,-303.45839,0.00027397,2]
[425003762,1781406233000,-303.45839,0.00027397,2]
[425003783,1781406233000,-303.45839,0.00027397,2]
[425003764,1781406233000,-303.45839,0.00027397,2]
[425003782,1781406233000,-500.0,0.00027397,2]
[425003781,1781406233000,-303.45839,0.00027397,2]
[425003780,1781406233000,-531.74,0.00027397,2]
[425003779,1781406233000,-1529.72,0.00027397,2]
[425003778,1781406233000,-155.40189194,0.00027397,2]
[425003776,1781406233000,-768.09,0.00027397,2]
[425003774,1781406233000,-303.45839,0.00027397,2]
[425003775,1781406233000,-423.88417508,0.00027397,2]
[425003777,1781406233000,-303.45839,0.00027397,2]
[425003772,1781406233000,-303.45839,0.00027397,2]
[425003773,1781406233000,-733.48,0.00027397,2]
[425003766,1781406233000,-303.45839,0.00027397,2]
[425003768,1781406233000,-303.45839,0.00027397,2]
[425003767,1781406233000,-303.45839,0.00027397,2]
[425003765,1781406233000,-303.45839,0.00027397,2]
[425003769,1781406233000,-303.45839,0.00027397,2]
[425003771,1781406233000,-622.87,0.00027397,2]
[425003770,1781406233000,-1098.55,0.00027397,2]
[425003793,1781406234000,-303.45839,0.00027397,2]
[425003800,1781406234000,-631.02,0.00027397,2]
[425003799,1781406234000,-500.0,0.00027397,2]
[425003798,1781406234000,-676.27,0.00027397,2]
[425003797,1781406234000,-303.458398,0.00027397,2]
[425003796,1781406234000,-303.45839,0.00027397,2]
[425003795,1781406234000,-500.0,0.00027397,2]
[425003794,1781406234000,-500.0,0.00027397,2]
[425003802,1781406234000,-500.0,0.00027397,2]
[425003791,1781406234000,-303.45839,0.00027397,2]
[425003789,1781406234000,-303.45839,0.00027397,2]
[425003790,1781406234000,-500.0,0.00027397,2]
[425003788,1781406234000,-303.45839,0.00027397,2]
[425003787,1781406234000,-500.0,0.00027397,2]
[425003785,1781406234000,-500.0,0.00027397,2]
[425003786,1781406234000,-303.45839,0.00027397,2]
[425003784,1781406234000,-1431.42,0.00027397,2]
[425003792,1781406234000,-500.0,0.00027397,2]
[425003804,1781406234000,-500.0,0.00027397,2]
[425003801,1781406234000,-3257.38,0.00027397,2]
[425003805,1781406234000,-569.41,0.00027397,2]
[425003822,1781406234000,-151.0,0.00027397,2]
[425003821,1781406234000,-500.0,0.00027397,2]
[425003820,1781406234000,-151.0,0.00027397,2]
[425003817,1781406234000,-151.0,0.00027397,2]
[425003819,1781406234000,-151.0,0.00027397,2]
[425003818,1781406234000,-151.0,0.00027397,2]
[425003815,1781406234000,-2813.26,0.00027397,2]
[425003816,1781406234000,-151.0,0.00027397,2]
[425003813,1781406234000,-500.0,0.00027397,2]
[425003803,1781406234000,-500.0,0.00027397,2]
[425003812,1781406234000,-500.0,0.00027397,2]
[425003811,1781406234000,-580.01666652,0.00027397,2]
[425003810,1781406234000,-844.84,0.00027397,2]
[425003809,1781406234000,-565.12881281,0.00027397,2]
[425003808,1781406234000,-500.0,0.00027397,2]
[425003806,1781406234000,-500.0,0.00027397,2]
[425003807,1781406234000,-500.0,0.00027397,2]
[425003823,1781406234000,-151.0,0.00027397,2]
[425003814,1781406234000,-151.0,0.00027397,2]
[425003836,1781406235000,-500.0,0.00027397,2]
[425003837,1781406235000,-648.55,0.00027397,2]
[425003840,1781406235000,-1660.18,0.00027397,2]
[425003838,1781406235000,-500.0,0.00027397,2]
[425003841,1781406235000,-500.0,0.00027397,2]
[425003835,1781406235000,-234.875091,0.00027397,2]
[425003839,1781406235000,-635.76,0.00027397,2]
[425003834,1781406235000,-636.83,0.00027397,2]
[425003829,1781406235000,-500.0,0.00027397,2]
[425003833,1781406235000,-500.0,0.00027397,2]
[425003831,1781406235000,-511.86,0.00027397,2]
[425003830,1781406235000,-151.0,0.00027397,2]
[425003827,1781406235000,-151.0,0.00027397,2]
[425003826,1781406235000,-151.0,0.00027397,2]
[425003828,1781406235000,-500.0,0.00027397,2]
[425003824,1781406235000,-904.48,0.00027397,2]
[425003843,1781406235000,-2355.2,0.00027397,2]
[425003832,1781406235000,-151.0,0.00027397,2]
[425003825,1781406235000,-1414.76,0.00027397,2]
[425003845,1781406235000,-993.6,0.00027397,2]
[425003844,1781406235000,-500.0,0.00027397,2]
[425003842,1781406235000,-500.0,0.00027397,2]
[425003864,1781406235000,-500.0,0.00027397,2]
[425003863,1781406235000,-500.0,0.00027397,2]
[425003862,1781406235000,-500.0,0.00027397,2]
[425003861,1781406235000,-500.0,0.00027397,2]
[425003858,1781406235000,-500.0,0.00027397,2]
[425003859,1781406235000,-5130.48,0.00027397,2]
[425003857,1781406235000,-1894.62,0.00027397,2]
[425003855,1781406235000,-1819.36,0.00027397,2]
[425003860,1781406235000,-500.0,0.00027397,2]
[425003856,1781406235000,-500.0,0.00027397,2]
[425003854,1781406235000,-500.0,0.00027397,2]
[425003846,1781406235000,-1169.33,0.00027397,2]
[425003848,1781406235000,-500.0,0.00027397,2]
[425003849,1781406235000,-639.01,0.00027397,2]
[425003847,1781406235000,-4750.24,0.00027397,2]
[425003852,1781406235000,-500.0,0.00027397,2]
[425003853,1781406235000,-500.0,0.00027397,2]
[425003851,1781406235000,-617.9,0.00027397,2]
[425003850,1781406235000,-500.0,0.00027397,2]
[425003877,1781406236000,-882.53,0.00027397,2]
[425003885,1781406236000,-652.63,0.00027397,2]
[425003884,1781406236000,-2728.05,0.00027397,2]
[425003879,1781406236000,-500.0,0.00027397,2]
[425003881,1781406236000,-500.0,0.00027397,2]
[425003878,1781406236000,-659.77,0.00027397,2]
[425003880,1781406236000,-500.0,0.00027397,2]
[425003875,1781406236000,-1145.97,0.00027397,2]
[425003876,1781406236000,-500.0,0.00027397,2]
[425003865,1781406236000,-3048.74,0.00027397,2]
[425003873,1781406236000,-500.0,0.00027397,2]
[425003872,1781406236000,-500.0,0.00027397,2]
[425003870,1781406236000,-703.78,0.00027397,2]
[425003871,1781406236000,-596.31,0.00027397,2]
[425003869,1781406236000,-500.0,0.00027397,2]
[425003867,1781406236000,-1056.75,0.00027397,2]
[425003868,1781406236000,-500.0,0.00027397,2]
[425003866,1781406236000,-1397.7,0.00027397,2]
[425003874,1781406236000,-500.0,0.00027397,2]
[425003882,1781406236000,-500.0,0.00027397,2]
[425003883,1781406236000,-4985.16,0.00027397,2]
[425003887,1781406236000,-500.0,0.00027397,2]
[425003906,1781406236000,-500.0,0.00027397,2]
[425003905,1781406236000,-500.0,0.00027397,2]
[425003904,1781406236000,-1386.96,0.00027397,2]
[425003903,1781406236000,-500.0,0.00027397,2]
[425003902,1781406236000,-1001.36,0.00027397,2]
[425003900,1781406236000,-759.82,0.00027397,2]
[425003901,1781406236000,-199.18534462,0.00027397,2]
[425003899,1781406236000,-500.0,0.00027397,2]
[425003898,1781406236000,-500.0,0.00027397,2]
[425003886,1781406236000,-500.0,0.00027397,2]
[425003897,1781406236000,-1291.59,0.00027397,2]
[425003896,1781406236000,-931.43,0.00027397,2]
[425003892,1781406236000,-1569.19,0.00027397,2]
[425003894,1781406236000,-867.92,0.00027397,2]
[425003893,1781406236000,-1835.11,0.00027397,2]
[425003891,1781406236000,-500.0,0.00027397,2]
[425003888,1781406236000,-2665.72,0.00027397,2]
[425003890,1781406236000,-507.64,0.00027397,2]
[425003889,1781406236000,-931.79,0.00027397,2]
[425003895,1781406236000,-500.0,0.00027397,2]
[425003920,1781406237000,-2249.32,0.00027397,2]
[425003919,1781406237000,-773.05,0.00027397,2]
[425003922,1781406237000,-2303.01,0.00027397,2]
[425003923,1781406237000,-500.0,0.00027397,2]
[425003926,1781406237000,-3720.93,0.00027397,2]
[425003924,1781406237000,-500.0,0.00027397,2]
[425003921,1781406237000,-500.0,0.00027397,2]
[425003925,1781406237000,-500.0,0.00027397,2]
[425003918,1781406237000,-500.0,0.00027397,2]
[425003913,1781406237000,-1137.95,0.00027397,2]
[425003916,1781406237000,-500.0,0.00027397,2]
[425003917,1781406237000,-500.0,0.00027397,2]
[425003914,1781406237000,-1875.14,0.00027397,2]
[425003909,1781406237000,-639.11,0.00027397,2]
[425003912,1781406237000,-500.0,0.00027397,2]
[425003911,1781406237000,-500.0,0.00027397,2]
[425003910,1781406237000,-500.0,0.00027397,2]
[425003908,1781406237000,-743.68,0.00027397,2]
[425003929,1781406237000,-500.0,0.00027397,2]
[425003915,1781406237000,-500.0,0.00027397,2]
[425003907,1781406237000,-500.0,0.00027397,2]
[425003927,1781406237000,-500.0,0.00027397,2]
[425003928,1781406237000,-500.0,0.00027397,2]
[425003930,1781406237000,-3144.51,0.00027397,2]
[425003949,1781406237000,-1654.44,0.00027397,2]
[425003948,1781406237000,-500.0,0.00027397,2]
[425003945,1781406237000,-1188.23,0.00027397,2]
[425003944,1781406237000,-500.0,0.00027397,2]
[425003946,1781406237000,-1375.3,0.00027397,2]
[425003943,1781406237000,-500.0,0.00027397,2]
[425003942,1781406237000,-1343.85,0.00027397,2]
[425003940,1781406237000,-590.36,0.00027397,2]
[425003947,1781406237000,-1137.34,0.00027397,2]
[425003939,1781406237000,-733.84,0.00027397,2]
[425003941,1781406237000,-200.0,0.00027397,2]
[425003933,1781406237000,-5640.23,0.00027397,2]
[425003932,1781406237000,-500.0,0.00027397,2]
[425003934,1781406237000,-500.0,0.00027397,2]
[425003931,1781406237000,-745.18,0.00027397,2]
[425003936,1781406237000,-1223.81,0.00027397,2]
[425003938,1781406237000,-517.32,0.00027397,2]
[425003937,1781406237000,-649.8,0.00027397,2]
[425003935,1781406237000,-1984.43,0.00027397,2]
[425003962,1781406238000,-922.54,0.00027397,2]
[425003968,1781406238000,-500.0,0.00027397,2]
[425003967,1781406238000,-731.15,0.00027397,2]
[425003965,1781406238000,-500.0,0.00027397,2]
[425003966,1781406238000,-500.0,0.00027397,2]
[425003964,1781406238000,-753.41,0.00027397,2]
[425003963,1781406238000,-921.45,0.00027397,2]
[425003961,1781406238000,-500.0,0.00027397,2]
[425003960,1781406238000,-500.0,0.00027397,2]
[425003951,1781406238000,-508.32,0.00027397,2]
[425003959,1781406238000,-1367.77,0.00027397,2]
[425003957,1781406238000,-500.0,0.00027397,2]
[425003953,1781406238000,-500.0,0.00027397,2]
[425003956,1781406238000,-1505.96,0.00027397,2]
[425003955,1781406238000,-500.0,0.00027397,2]
[425003952,1781406238000,-500.0,0.00027397,2]
[425003954,1781406238000,-500.0,0.00027397,2]
[425003950,1781406238000,-1002.76,0.00027397,2]
[425003958,1781406238000,-1897.36,0.00027397,2]
[425003970,1781406238000,-1073.85,0.00027397,2]
[425003972,1781406238000,-500.0,0.00027397,2]
[425003971,1781406238000,-542.98,0.00027397,2]
[425003969,1781406238000,-702.89,0.00027397,2]
[425003991,1781406238000,-537.20070902,0.00027397,2]
[425003990,1781406238000,-500.0,0.00027397,2]
[425003986,1781406238000,-1185.29,0.00027397,2]
[425003989,1781406238000,-1213.74,0.00027397,2]